[Event "Late-Titled-Tuesday-Blitz-March-05-2024"]
[Site "Chess.com"]
[Date "2024.03.05"]
[Round "5"]
[White "cristiano78"]
[Black "Schattman"]
[Result "1/2-1/2"]
[WhiteElo "2294"]
[BlackElo "2424"]
[TimeControl "180+1"]
[EndTime "14:55:46 PST"]
[Termination "Game drawn by repetition"]

1. d4 {[%clk 0:03:00.9]} 1... Nf6 {[%clk 0:02:54]} 2. c4 {[%clk 0:03:00.7]} 2...
g6 {[%clk 0:02:54.3]} 3. Nc3 {[%clk 0:03:01]} 3... d5 {[%clk 0:02:54.5]} 4. Bf4
{[%clk 0:03:01.1]} 4... Bg7 {[%clk 0:02:53]} 5. e3 {[%clk 0:03:01.5]} 5... c5
{[%clk 0:02:53.1]} 6. dxc5 {[%clk 0:03:01.5]} 6... Qa5 {[%clk 0:02:52.1]} 7. Rc1
{[%clk 0:03:01.7]} 7... Ne4 {[%clk 0:02:49.6]} 8. cxd5 {[%clk 0:02:57.5]} 8...
Nxc3 {[%clk 0:02:42.4]} 9. Qd2 {[%clk 0:02:57.2]} 9... O-O {[%clk 0:02:34.3]}
10. bxc3 {[%clk 0:02:57.2]} 10... Qxc5 {[%clk 0:02:33.6]} 11. e4 {[%clk
0:02:55.5]} 11... Nd7 {[%clk 0:02:21.8]} 12. Be3 {[%clk 0:02:52.3]} 12... Qc7
{[%clk 0:02:18.3]} 13. Nf3 {[%clk 0:02:52]} 13... Nc5 {[%clk 0:02:17.4]} 14. Bd3
{[%clk 0:02:49.1]} 14... Bg4 {[%clk 0:02:15.5]} 15. Nd4 {[%clk 0:02:47.9]} 15...
a6 {[%clk 0:02:10.3]} 16. f3 {[%clk 0:02:47.9]} 16... Bd7 {[%clk 0:02:05.9]} 17.
O-O {[%clk 0:02:47.4]} 17... Rfc8 {[%clk 0:02:00.9]} 18. Be2 {[%clk 0:02:47.3]}
18... Be5 {[%clk 0:01:46.9]} 19. f4 {[%clk 0:02:22.7]} 19... Nxe4 {[%clk
0:01:30.3]} 20. Qd3 {[%clk 0:02:22.2]} 20... Nc5 {[%clk 0:01:26.4]} 21. Qd2
{[%clk 0:02:08.2]} 21... Bg7 {[%clk 0:01:24.5]} 22. f5 {[%clk 0:02:03.6]} 22...
Be5 {[%clk 0:01:24.1]} 23. fxg6 {[%clk 0:02:02.2]} 23... hxg6 {[%clk 0:01:19.7]}
24. h3 {[%clk 0:01:51.5]} 24... Ne4 {[%clk 0:01:16.6]} 25. Qd3 {[%clk
0:01:50.8]} 25... Ng3 {[%clk 0:01:16]} 26. Rf2 {[%clk 0:01:47.8]} 26... Nxe2+
{[%clk 0:01:14.8]} 27. Qxe2 {[%clk 0:01:44.4]} 27... Rf8 {[%clk 0:01:02]} 28.
Rcf1 {[%clk 0:01:36.6]} 28... Bg7 {[%clk 0:01:00.9]} 29. Qd2 {[%clk 0:01:35.2]}
29... Rac8 {[%clk 0:00:58]} 30. Ne2 {[%clk 0:01:32.1]} 30... Bb5 {[%clk
0:00:56.4]} 31. Bd4 {[%clk 0:01:30.3]} 31... Bxe2 {[%clk 0:00:54]} 32. Rxe2
{[%clk 0:01:28.4]} 32... Bxd4+ {[%clk 0:00:53.8]} 33. Qxd4 {[%clk 0:01:24.5]}
33... Qxc3 {[%clk 0:00:45.2]} 34. Qxc3 {[%clk 0:01:23.5]} 34... Rxc3 {[%clk
0:00:45.3]} 35. Rxe7 {[%clk 0:01:23.3]} 35... Rd3 {[%clk 0:00:41.1]} 36. Rxb7
{[%clk 0:01:21.5]} 36... Rxd5 {[%clk 0:00:40.9]} 37. Rb2 {[%clk 0:01:14.3]}
37... Kg7 {[%clk 0:00:37.7]} 38. Rc1 {[%clk 0:01:10]} 38... Rfd8 {[%clk
0:00:37.1]} 39. Rc6 {[%clk 0:01:07.8]} 39... Rd1+ {[%clk 0:00:33.1]} 40. Kh2
{[%clk 0:01:06.5]} 40... a5 {[%clk 0:00:27.6]} 41. Rb5 {[%clk 0:01:03.3]} 41...
R1d5 {[%clk 0:00:23.4]} 42. Rcc5 {[%clk 0:01:03]} 42... Rxc5 {[%clk 0:00:23.5]}
43. Rxc5 {[%clk 0:01:03.1]} 43... Ra8 {[%clk 0:00:24]} 44. a4 {[%clk 0:01:01.3]}
44... Kf6 {[%clk 0:00:22.8]} 45. g4 {[%clk 0:01:00.2]} 45... g5 {[%clk
0:00:16.8]} 46. Kg3 {[%clk 0:00:59.1]} 46... Kg6 {[%clk 0:00:17.1]} 47. h4
{[%clk 0:00:58.1]} 47... gxh4+ {[%clk 0:00:16.8]} 48. Kxh4 {[%clk 0:00:58.6]}
48... Ra6 {[%clk 0:00:14.5]} 49. Kg3 {[%clk 0:00:56.8]} 49... f6 {[%clk
0:00:14.4]} 50. Kf4 {[%clk 0:00:57]} 50... Ra8 {[%clk 0:00:13.7]} 51. Ke4 {[%clk
0:00:56.5]} 51... Re8+ {[%clk 0:00:13.6]} 52. Kd4 {[%clk 0:00:56.6]} 52... Rb8
{[%clk 0:00:13.4]} 53. Rxa5 {[%clk 0:00:47.9]} 53... Rb4+ {[%clk 0:00:13.1]} 54.
Ke3 {[%clk 0:00:48.2]} 54... Rxg4 {[%clk 0:00:12.9]} 55. Ra8 {[%clk 0:00:48.7]}
55... Rg3+ {[%clk 0:00:13.3]} 56. Kf4 {[%clk 0:00:48.6]} 56... Ra3 {[%clk
0:00:12.7]} 57. a5 {[%clk 0:00:48.8]} 57... Ra4+ {[%clk 0:00:13]} 58. Kf3 {[%clk
0:00:48.7]} 58... Kf5 {[%clk 0:00:13.3]} 59. a6 {[%clk 0:00:48.8]} 59... Ra3+
{[%clk 0:00:13.6]} 60. Ke2 {[%clk 0:00:49.3]} 60... Kf4 {[%clk 0:00:13.7]} 61.
a7 {[%clk 0:00:47.8]} 61... f5 {[%clk 0:00:14]} 62. Kd2 {[%clk 0:00:48.4]} 62...
Kf3 {[%clk 0:00:12]} 63. Kc2 {[%clk 0:00:48.4]} 63... f4 {[%clk 0:00:12.5]} 64.
Kb2 {[%clk 0:00:48.7]} 64... Ra6 {[%clk 0:00:12.1]} 65. Kb3 {[%clk 0:00:48.9]}
65... Kf2 {[%clk 0:00:12.5]} 66. Kb4 {[%clk 0:00:49.2]} 66... f3 {[%clk
0:00:13]} 67. Kb5 {[%clk 0:00:49.7]} 67... Ra1 {[%clk 0:00:13.1]} 68. Kb6 {[%clk
0:00:50]} 68... Rb1+ {[%clk 0:00:11.2]} 69. Kc5 {[%clk 0:00:49.6]} 69... Rc1+
{[%clk 0:00:11.2]} 70. Kb6 {[%clk 0:00:49.7]} 70... Rb1+ {[%clk 0:00:11.2]} 71.
Kc5 {[%clk 0:00:49.6]} 71... Rc1+ {[%clk 0:00:11.4]} 72. Kb6 {[%clk 0:00:49.5]}
72... Rb1+ {[%clk 0:00:11.5]} 1/2-1/2

[Event "Late-Titled-Tuesday-Blitz-March-05-2024"]
[Site "Chess.com"]
[Date "2024.03.05"]
[Round "5"]
[White "secretworker2027"]
[Black "igorkovalenko"]
[Result "1-0"]
[WhiteElo "2676"]
[BlackElo "2916"]
[TimeControl "180+1"]
[EndTime "14:55:49 PST"]
[Termination "secretworker2027 won on time"]

1. e4 {[%clk 0:02:57.4]} 1... c5 {[%clk 0:02:52.7]} 2. Nc3 {[%clk 0:02:56.1]}
2... e6 {[%clk 0:02:52.4]} 3. Nf3 {[%clk 0:02:56.1]} 3... a6 {[%clk 0:02:52.1]}
4. d4 {[%clk 0:02:56.1]} 4... cxd4 {[%clk 0:02:53]} 5. Nxd4 {[%clk 0:02:56.8]}
5... b5 {[%clk 0:02:53.9]} 6. Bd3 {[%clk 0:02:56.9]} 6... Bb7 {[%clk 0:02:54.4]}
7. Qe2 {[%clk 0:02:57.1]} 7... Nc6 {[%clk 0:02:54.1]} 8. Nxc6 {[%clk 0:02:56.8]}
8... Bxc6 {[%clk 0:02:54.7]} 9. O-O {[%clk 0:02:56.3]} 9... Bc5 {[%clk
0:02:51.3]} 10. Be3 {[%clk 0:02:55.8]} 10... Qb6 {[%clk 0:02:51]} 11. Nd5 {[%clk
0:02:29.4]} 11... Bxd5 {[%clk 0:02:50.1]} 12. Bxc5 {[%clk 0:02:29.2]} 12... Qxc5
{[%clk 0:02:50]} 13. exd5 {[%clk 0:02:29.5]} 13... Nf6 {[%clk 0:02:48.6]} 14.
dxe6 {[%clk 0:02:27.8]} 14... dxe6 {[%clk 0:02:48.2]} 15. a4 {[%clk 0:02:25.7]}
15... O-O {[%clk 0:02:18.3]} 16. axb5 {[%clk 0:02:23.3]} 16... axb5 {[%clk
0:02:15.8]} 17. Rxa8 {[%clk 0:02:23.2]} 17... Rxa8 {[%clk 0:02:15.6]} 18. Bxb5
{[%clk 0:02:21.1]} 18... g6 {[%clk 0:01:55.8]} 19. Bd3 {[%clk 0:02:15.9]} 19...
Rb8 {[%clk 0:01:49.6]} 20. b3 {[%clk 0:02:14.3]} 20... Kg7 {[%clk 0:01:49]} 21.
h3 {[%clk 0:02:12.6]} 21... e5 {[%clk 0:01:45.9]} 22. Re1 {[%clk 0:02:11.9]}
22... e4 {[%clk 0:01:41.1]} 23. Bc4 {[%clk 0:02:09.5]} 23... Re8 {[%clk
0:01:34.7]} 24. Qe3 {[%clk 0:02:08.9]} 24... Qe5 {[%clk 0:01:31.1]} 25. Qg3
{[%clk 0:02:04.5]} 25... Qc5 {[%clk 0:01:21.9]} 26. Qe3 {[%clk 0:02:04.2]} 26...
Qe5 {[%clk 0:01:20.6]} 27. Qg3 {[%clk 0:02:04.5]} 27... Qa5 {[%clk 0:01:19.9]}
28. Qe3 {[%clk 0:02:01.1]} 28... Re7 {[%clk 0:01:19.6]} 29. Rd1 {[%clk 0:01:59]}
29... h5 {[%clk 0:01:15.8]} 30. Qd2 {[%clk 0:01:49.4]} 30... Qf5 {[%clk
0:01:11.5]} 31. Qc3 {[%clk 0:01:46.1]} 31... h4 {[%clk 0:01:07.7]} 32. Rd5
{[%clk 0:01:30.3]} 32... Qf4 {[%clk 0:01:06.4]} 33. Rd1 {[%clk 0:01:17.9]} 33...
Qg5 {[%clk 0:00:46.2]} 34. Qe3 {[%clk 0:01:16.8]} 34... Qe5 {[%clk 0:00:41.5]}
35. Qd4 {[%clk 0:01:16.7]} 35... Qf5 {[%clk 0:00:41.8]} 36. Qe3 {[%clk
0:01:15.3]} 36... Kh7 {[%clk 0:00:20.5]} 37. Be2 {[%clk 0:01:14.9]} 37... Qe5
{[%clk 0:00:16.9]} 38. c4 {[%clk 0:01:10.4]} 38... Qb2 {[%clk 0:00:12.5]} 39.
Bf1 {[%clk 0:01:01.5]} 39... Kg7 {[%clk 0:00:12.4]} 40. c5 {[%clk 0:00:57.6]}
40... Rb7 {[%clk 0:00:12.2]} 41. Bc4 {[%clk 0:00:57.5]} 41... Rc7 {[%clk
0:00:11.6]} 42. Qd4 {[%clk 0:00:55.7]} 42... Qxd4 {[%clk 0:00:10.7]} 43. Rxd4
{[%clk 0:00:56.4]} 43... Rxc5 {[%clk 0:00:11.6]} 44. Rd6 {[%clk 0:00:55.7]}
44... Rc7 {[%clk 0:00:11.8]} 45. Kf1 {[%clk 0:00:53.1]} 45... Nd7 {[%clk
0:00:11.2]} 46. Ke2 {[%clk 0:00:48.6]} 46... Ne5 {[%clk 0:00:11.5]} 47. Bd5
{[%clk 0:00:41.7]} 47... f5 {[%clk 0:00:11.8]} 48. b4 {[%clk 0:00:40]} 48... Nd3
{[%clk 0:00:10.4]} 49. b5 {[%clk 0:00:38]} 49... Rc2+ {[%clk 0:00:09.4]} 50. Ke3
{[%clk 0:00:37.3]} 50... Rb2 {[%clk 0:00:09.4]} 51. Bc4 {[%clk 0:00:35.3]} 51...
Nxf2 {[%clk 0:00:07.8]} 52. Kf4 {[%clk 0:00:28.7]} 52... Rb4 {[%clk 0:00:06.7]}
53. Be2 {[%clk 0:00:24.2]} 53... Kh6 {[%clk 0:00:05.5]} 54. Ke5 {[%clk
0:00:24.2]} 54... Kg5 {[%clk 0:00:04.9]} 55. b6 {[%clk 0:00:22.4]} 55... Nd3+
{[%clk 0:00:05]} 56. Kd5 {[%clk 0:00:16.2]} 56... Rb2 {[%clk 0:00:03.7]} 57.
Bxd3 {[%clk 0:00:15.5]} 57... exd3 {[%clk 0:00:04.6]} 58. Kc6 {[%clk 0:00:16.1]}
58... d2 {[%clk 0:00:03.7]} 59. b7 {[%clk 0:00:16.6]} 59... Rc2+ {[%clk
0:00:02.7]} 60. Kb6 {[%clk 0:00:16.6]} 60... Kf4 {[%clk 0:00:01.5]} 61. Rxd2
{[%clk 0:00:14.3]} 1-0

[Event "Late-Titled-Tuesday-Blitz-March-05-2024"]
[Site "Chess.com"]
[Date "2024.03.05"]
[Round "5"]
[White "yaguigor"]
[Black "czasnaszachy"]
[Result "1-0"]
[WhiteElo "2577"]
[BlackElo "2436"]
[TimeControl "180+1"]
[EndTime "14:55:52 PST"]
[Termination "yaguigor won on time"]

1. e4 {[%clk 0:02:43]} 1... e5 {[%clk 0:02:59.2]} 2. Nf3 {[%clk 0:02:38.5]} 2...
Nc6 {[%clk 0:02:58.8]} 3. Bb5 {[%clk 0:02:35.1]} 3... a6 {[%clk 0:02:58.6]} 4.
Ba4 {[%clk 0:02:33.2]} 4... Nf6 {[%clk 0:02:58.7]} 5. O-O {[%clk 0:02:32.8]}
5... Be7 {[%clk 0:02:58.6]} 6. Re1 {[%clk 0:02:32.4]} 6... b5 {[%clk 0:02:57.7]}
7. Bb3 {[%clk 0:02:33.1]} 7... d6 {[%clk 0:02:55]} 8. c3 {[%clk 0:02:32.4]} 8...
O-O {[%clk 0:02:54.8]} 9. h3 {[%clk 0:02:31]} 9... Na5 {[%clk 0:02:54.2]} 10.
Bc2 {[%clk 0:02:30.4]} 10... c5 {[%clk 0:02:54.7]} 11. d4 {[%clk 0:02:30.9]}
11... Qc7 {[%clk 0:02:54.7]} 12. Nbd2 {[%clk 0:02:30.2]} 12... Bd7 {[%clk
0:02:53.6]} 13. Nf1 {[%clk 0:02:27.8]} 13... Nc4 {[%clk 0:02:53.5]} 14. Ne3
{[%clk 0:02:20.3]} 14... Nxe3 {[%clk 0:02:52.4]} 15. Bxe3 {[%clk 0:02:20.2]}
15... cxd4 {[%clk 0:02:49.5]} 16. cxd4 {[%clk 0:02:19.5]} 16... Rfc8 {[%clk
0:02:49.1]} 17. Rc1 {[%clk 0:02:17.9]} 17... Qb8 {[%clk 0:02:40.8]} 18. Bg5
{[%clk 0:02:00.3]} 18... h6 {[%clk 0:02:37.4]} 19. Bxf6 {[%clk 0:01:57.2]} 19...
gxf6 {[%clk 0:02:32.2]} 20. Bb3 {[%clk 0:01:50.3]} 20... Rxc1 {[%clk 0:01:48.4]}
21. Qxc1 {[%clk 0:01:47.7]} 21... Qf8 {[%clk 0:01:48.6]} 22. Qc7 {[%clk
0:01:41.6]} 22... Qd8 {[%clk 0:01:40.7]} 23. Rc1 {[%clk 0:01:38.6]} 23... Rc8
{[%clk 0:01:36.5]} 24. Qxd8+ {[%clk 0:01:37.8]} 24... Bxd8 {[%clk 0:01:36.6]}
25. Rxc8 {[%clk 0:01:36.2]} 25... Bxc8 {[%clk 0:01:36.9]} 26. Bd5 {[%clk
0:01:34.2]} 26... Bb6 {[%clk 0:01:24.6]} 27. dxe5 {[%clk 0:01:33.3]} 27... fxe5
{[%clk 0:01:23.7]} 28. b4 {[%clk 0:01:33.2]} 28... Kf8 {[%clk 0:01:15.3]} 29.
Kf1 {[%clk 0:01:27.7]} 29... Ke7 {[%clk 0:01:10.1]} 30. Ke2 {[%clk 0:01:26.5]}
30... f5 {[%clk 0:01:09.1]} 31. Nd2 {[%clk 0:01:25]} 31... Bd4 {[%clk
0:01:01.5]} 32. exf5 {[%clk 0:01:17.6]} 32... Bxf5 {[%clk 0:00:52.7]} 33. Bb7
{[%clk 0:01:17.4]} 33... Bd7 {[%clk 0:00:36.6]} 34. Bxa6 {[%clk 0:01:12.8]}
34... Bc6 {[%clk 0:00:33.7]} 35. f3 {[%clk 0:01:10.7]} 35... Kd8 {[%clk
0:00:30.4]} 36. Nb3 {[%clk 0:01:04.8]} 36... Bc3 {[%clk 0:00:21.2]} 37. Na5
{[%clk 0:00:58.5]} 37... Kc7 {[%clk 0:00:18.7]} 38. Nxc6 {[%clk 0:00:53]} 38...
Kxc6 {[%clk 0:00:18.5]} 39. g4 {[%clk 0:00:51.8]} 39... Bxb4 {[%clk 0:00:17.7]}
40. h4 {[%clk 0:00:50.4]} 40... Kb6 {[%clk 0:00:13.4]} 41. Bc8 {[%clk
0:00:48.4]} 41... Kc7 {[%clk 0:00:13.1]} 42. Be6 {[%clk 0:00:47.7]} 42... Kd8
{[%clk 0:00:12.9]} 43. g5 {[%clk 0:00:46.4]} 43... hxg5 {[%clk 0:00:12.6]} 44.
hxg5 {[%clk 0:00:46.5]} 44... Ke7 {[%clk 0:00:12.9]} 45. Bd5 {[%clk 0:00:46.4]}
45... Bc5 {[%clk 0:00:10.1]} 46. Kd3 {[%clk 0:00:44.4]} 46... b4 {[%clk
0:00:10.4]} 47. Ke4 {[%clk 0:00:43.9]} 47... Kf8 {[%clk 0:00:10.1]} 48. Kf5
{[%clk 0:00:43.9]} 48... Kg7 {[%clk 0:00:10.2]} 49. Bc6 {[%clk 0:00:40.7]} 49...
Bd4 {[%clk 0:00:08.7]} 50. Be4 {[%clk 0:00:40.6]} 50... Be3 {[%clk 0:00:08.7]}
51. Ke6 {[%clk 0:00:40.8]} 51... Bxg5 {[%clk 0:00:08.3]} 52. Kxd6 {[%clk
0:00:40.2]} 52... Kf6 {[%clk 0:00:08.5]} 53. Kc5 {[%clk 0:00:38.3]} 53... Bd2
{[%clk 0:00:08.5]} 54. Kc4 {[%clk 0:00:38.1]} 54... Be1 {[%clk 0:00:08.7]} 55.
Kb3 {[%clk 0:00:37.8]} 55... Bd2 {[%clk 0:00:08.7]} 56. Kc2 {[%clk 0:00:37.6]}
56... Be1 {[%clk 0:00:08.8]} 57. Bb7 {[%clk 0:00:37]} 57... Kg5 {[%clk
0:00:08.4]} 58. Kd1 {[%clk 0:00:36.1]} 58... Bc3 {[%clk 0:00:08.1]} 59. Ke2
{[%clk 0:00:36.1]} 59... Bd4 {[%clk 0:00:07.8]} 60. Kd3 {[%clk 0:00:36.1]} 60...
Kf4 {[%clk 0:00:08.2]} 61. Kc4 {[%clk 0:00:36]} 61... Bc3 {[%clk 0:00:08.3]} 62.
a4 {[%clk 0:00:35.5]} 62... Be1 {[%clk 0:00:05]} 63. Kb3 {[%clk 0:00:33.8]}
63... Ke3 {[%clk 0:00:03.2]} 64. a5 {[%clk 0:00:33.2]} 64... Bf2 {[%clk
0:00:02.7]} 65. Kxb4 {[%clk 0:00:31.5]} 65... Kd3 {[%clk 0:00:02.5]} 66. Kb5
{[%clk 0:00:31.4]} 66... Kc3 {[%clk 0:00:01.4]} 67. Be4 {[%clk 0:00:30]} 1-0

[Event "Late-Titled-Tuesday-Blitz-March-05-2024"]
[Site "Chess.com"]
[Date "2024.03.05"]
[Round "5"]
[White "ferdipy"]
[Black "bazar-wokzal"]
[Result "0-1"]
[WhiteElo "2307"]
[BlackElo "2563"]
[TimeControl "180+1"]
[EndTime "14:55:52 PST"]
[Termination "bazar-wokzal won by checkmate"]

1. e4 {[%clk 0:02:15.9]} 1... Nc6 {[%clk 0:02:58.8]} 2. d4 {[%clk 0:02:15.6]}
2... d5 {[%clk 0:02:58.8]} 3. exd5 {[%clk 0:02:16.5]} 3... Qxd5 {[%clk 0:02:59]}
4. Nf3 {[%clk 0:02:17.4]} 4... Bg4 {[%clk 0:02:58.5]} 5. Be2 {[%clk 0:02:17]}
5... O-O-O {[%clk 0:02:58.6]} 6. O-O {[%clk 0:02:11.9]} 6... Bxf3 {[%clk
0:02:57.1]} 7. Bxf3 {[%clk 0:02:11.3]} 7... Qxd4 {[%clk 0:02:57.4]} 8. Qe2
{[%clk 0:02:10.2]} 8... Qe5 {[%clk 0:02:46.1]} 9. Qc4 {[%clk 0:02:01.3]} 9...
Nd4 {[%clk 0:02:26.1]} 10. Bg4+ {[%clk 0:01:40.5]} 10... e6 {[%clk 0:02:22.9]}
11. Nc3 {[%clk 0:01:38.7]} 11... Bd6 {[%clk 0:02:10.8]} 12. g3 {[%clk
0:01:36.8]} 12... h5 {[%clk 0:01:48.8]} 13. Bd1 {[%clk 0:01:20.5]} 13... h4
{[%clk 0:01:48.3]} 14. Bf4 {[%clk 0:01:20.5]} 14... Qc5 {[%clk 0:01:33.7]} 15.
Qxc5 {[%clk 0:01:18]} 15... Bxc5 {[%clk 0:01:33.6]} 16. Ne4 {[%clk 0:01:17.4]}
16... Be7 {[%clk 0:01:29.6]} 17. c3 {[%clk 0:01:16.8]} 17... Nc6 {[%clk
0:01:23.2]} 18. Bf3 {[%clk 0:01:15.8]} 18... f5 {[%clk 0:01:10]} 19. Ng5 {[%clk
0:01:10]} 19... e5 {[%clk 0:01:09.8]} 20. Nf7 {[%clk 0:00:58.7]} 20... exf4
{[%clk 0:01:03.5]} 21. Bxc6 {[%clk 0:00:47.6]} 21... bxc6 {[%clk 0:00:49.3]} 22.
Nxh8 {[%clk 0:00:46.2]} 22... fxg3 {[%clk 0:00:19.9]} 23. hxg3 {[%clk
0:00:44.2]} 23... hxg3 {[%clk 0:00:20]} 24. fxg3 {[%clk 0:00:44.6]} 24... Nh6
{[%clk 0:00:20.4]} 25. Ng6 {[%clk 0:00:43.2]} 25... Bc5+ {[%clk 0:00:20.7]} 26.
Kh1 {[%clk 0:00:27]} 26... Rd2 {[%clk 0:00:21.6]} 27. Rad1 {[%clk 0:00:26.6]}
27... Rxb2 {[%clk 0:00:20.8]} 28. Nf4 {[%clk 0:00:23]} 28... Ng4 {[%clk
0:00:20.2]} 29. Ng2 {[%clk 0:00:18.2]} 29... Nf2+ {[%clk 0:00:19.9]} 30. Rxf2
{[%clk 0:00:18.4]} 30... Rxf2 {[%clk 0:00:19.8]} 31. a4 {[%clk 0:00:18.8]} 31...
g5 {[%clk 0:00:19.4]} 32. Re1 {[%clk 0:00:10.5]} 32... f4 {[%clk 0:00:17.1]} 33.
gxf4 {[%clk 0:00:10.3]} 33... gxf4 {[%clk 0:00:17.7]} 34. Re4 {[%clk 0:00:08.6]}
34... f3 {[%clk 0:00:17.6]} 35. Nf4 {[%clk 0:00:08.9]} 35... Rc2 {[%clk
0:00:14.3]} 36. Nd3 {[%clk 0:00:03.6]} 36... Rxc3 {[%clk 0:00:14.5]} 37. Nxc5
{[%clk 0:00:03.3]} 37... Rxc5 {[%clk 0:00:14.7]} 38. Kg1 {[%clk 0:00:04.2]}
38... Rf5 {[%clk 0:00:12.3]} 39. Kf2 {[%clk 0:00:05.1]} 39... c5 {[%clk
0:00:12.3]} 40. Rc4 {[%clk 0:00:05.2]} 40... Kb7 {[%clk 0:00:12.4]} 41. Rh4
{[%clk 0:00:05.1]} 41... Kc6 {[%clk 0:00:12]} 42. Rh7 {[%clk 0:00:04.6]} 42...
c4 {[%clk 0:00:11.1]} 43. Rh4 {[%clk 0:00:04.2]} 43... Kc5 {[%clk 0:00:11.2]}
44. Rh7 {[%clk 0:00:04]} 44... c6 {[%clk 0:00:10.3]} 45. Rxa7 {[%clk 0:00:04.4]}
45... Kb4 {[%clk 0:00:10.1]} 46. a5 {[%clk 0:00:04.1]} 46... c3 {[%clk
0:00:10.4]} 47. Rb7+ {[%clk 0:00:03.6]} 47... Kxa5 {[%clk 0:00:10.1]} 48. Rb1
{[%clk 0:00:04.5]} 48... Ka4 {[%clk 0:00:09.5]} 49. Rc1 {[%clk 0:00:05.4]} 49...
Kb3 {[%clk 0:00:09.6]} 50. Rb1+ {[%clk 0:00:05.5]} 50... Ka2 {[%clk 0:00:09.3]}
51. Rc1 {[%clk 0:00:05.6]} 51... Kb2 {[%clk 0:00:09.7]} 52. Rh1 {[%clk
0:00:04.2]} 52... c2 {[%clk 0:00:10.1]} 53. Rh2 {[%clk 0:00:03.6]} 53... c1=Q
{[%clk 0:00:10]} 54. Kg3+ {[%clk 0:00:04.5]} 54... Kc3 {[%clk 0:00:10.1]} 55.
Kg4 {[%clk 0:00:05.4]} 55... Qf4+ {[%clk 0:00:10.1]} 56. Kh3 {[%clk 0:00:05.3]}
56... Rh5# {[%clk 0:00:11]} 0-1

[Event "Late-Titled-Tuesday-Blitz-March-05-2024"]
[Site "Chess.com"]
[Date "2024.03.05"]
[Round "5"]
[White "Adham_Fawzy"]
[Black "laziestwin"]
[Result "0-1"]
[WhiteElo "2794"]
[BlackElo "2594"]
[TimeControl "180+1"]
[EndTime "14:55:53 PST"]
[Termination "laziestwin won by checkmate"]

1. e4 {[%clk 0:03:00.9]} 1... c5 {[%clk 0:02:58.6]} 2. c4 {[%clk 0:02:59.7]}
2... e5 {[%clk 0:02:56.8]} 3. Nc3 {[%clk 0:03:00.3]} 3... Nc6 {[%clk 0:02:56.6]}
4. g3 {[%clk 0:03:01]} 4... g6 {[%clk 0:02:56.7]} 5. Bg2 {[%clk 0:03:01.7]} 5...
Bg7 {[%clk 0:02:57.1]} 6. Nge2 {[%clk 0:03:02.4]} 6... Nge7 {[%clk 0:02:57.4]}
7. O-O {[%clk 0:03:02.9]} 7... O-O {[%clk 0:02:58]} 8. d3 {[%clk 0:03:03.5]}
8... d6 {[%clk 0:02:58.3]} 9. a3 {[%clk 0:03:04.1]} 9... f5 {[%clk 0:02:56.9]}
10. Be3 {[%clk 0:03:03.5]} 10... Be6 {[%clk 0:02:53.5]} 11. Rb1 {[%clk
0:03:03.2]} 11... a5 {[%clk 0:02:43.7]} 12. Nd5 {[%clk 0:03:01.5]} 12... Nd4
{[%clk 0:02:26.9]} 13. exf5 {[%clk 0:02:55.1]} 13... Bxd5 {[%clk 0:02:21.7]} 14.
cxd5 {[%clk 0:02:48.2]} 14... Nexf5 {[%clk 0:02:20.8]} 15. Nxd4 {[%clk
0:02:46.3]} 15... Nxe3 {[%clk 0:02:10.8]} 16. fxe3 {[%clk 0:02:46.6]} 16... exd4
{[%clk 0:02:11.1]} 17. e4 {[%clk 0:02:42]} 17... Qg5 {[%clk 0:02:09.5]} 18. Qc2
{[%clk 0:02:32.8]} 18... h5 {[%clk 0:01:49.9]} 19. Kh1 {[%clk 0:02:29.8]} 19...
h4 {[%clk 0:01:49.8]} 20. Bh3 {[%clk 0:01:52.5]} 20... hxg3 {[%clk 0:01:35.7]}
21. Be6+ {[%clk 0:01:50.5]} 21... Kh7 {[%clk 0:01:35.5]} 22. hxg3 {[%clk
0:01:14.3]} 22... Qxg3 {[%clk 0:01:01.8]} 23. Qh2+ {[%clk 0:01:14.1]} 23...
Qxh2+ {[%clk 0:01:01.8]} 24. Kxh2 {[%clk 0:01:15]} 24... Be5+ {[%clk 0:01:01.8]}
25. Kg2 {[%clk 0:01:14.8]} 25... Kg7 {[%clk 0:01:01.5]} 26. a4 {[%clk
0:01:08.5]} 26... Bf4 {[%clk 0:00:57.8]} 27. Rf3 {[%clk 0:00:47.5]} 27... g5
{[%clk 0:00:57.4]} 28. Rh1 {[%clk 0:00:45.6]} 28... Rh8 {[%clk 0:00:51.4]} 29.
Rfh3 {[%clk 0:00:43.3]} 29... Rxh3 {[%clk 0:00:51.3]} 30. Rxh3 {[%clk
0:00:44.2]} 30... Ra6 {[%clk 0:00:50.8]} 31. Bd7 {[%clk 0:00:35.1]} 31... Ra8
{[%clk 0:00:45.6]} 32. Kf3 {[%clk 0:00:26.6]} 32... Rh8 {[%clk 0:00:35.5]} 33.
Rxh8 {[%clk 0:00:26.1]} 33... Kxh8 {[%clk 0:00:36.4]} 34. Kg4 {[%clk 0:00:26.8]}
34... Kg7 {[%clk 0:00:36.7]} 35. Kf5 {[%clk 0:00:26.3]} 35... Kh6 {[%clk
0:00:31.2]} 36. Be8 {[%clk 0:00:26.1]} 36... Kg7 {[%clk 0:00:26.7]} 37. Bh5
{[%clk 0:00:23.8]} 37... Kh6 {[%clk 0:00:17.6]} 38. Bg4 {[%clk 0:00:20]} 38...
Kg7 {[%clk 0:00:08.5]} 39. Ke6 {[%clk 0:00:20.5]} 39... Kf8 {[%clk 0:00:07]} 40.
Kd7 {[%clk 0:00:18.8]} 40... Kf7 {[%clk 0:00:06]} 41. Kc7 {[%clk 0:00:18.7]}
41... Kf6 {[%clk 0:00:04]} 42. b3 {[%clk 0:00:15.2]} 42... Ke5 {[%clk
0:00:04.1]} 43. Bd1 {[%clk 0:00:09.8]} 43... Bd2 {[%clk 0:00:03.1]} 44. Kd7
{[%clk 0:00:10.2]} 44... Bb4 {[%clk 0:00:02.7]} 45. Ke7 {[%clk 0:00:10.7]} 45...
Kf4 {[%clk 0:00:03.2]} 46. Kxd6 {[%clk 0:00:10.5]} 46... c4+ {[%clk 0:00:03.9]}
47. Kc7 {[%clk 0:00:07.9]} 47... c3 {[%clk 0:00:04.5]} 48. d6 {[%clk 0:00:05.3]}
48... g4 {[%clk 0:00:05.2]} 49. d7 {[%clk 0:00:02]} 49... Be7 {[%clk 0:00:06.1]}
50. e5 {[%clk 0:00:02.3]} 50... g3 {[%clk 0:00:05.9]} 51. e6 {[%clk 0:00:02]}
51... g2 {[%clk 0:00:05.9]} 52. d8=Q {[%clk 0:00:02.7]} 52... Bxd8+ {[%clk
0:00:06.4]} 53. Kxd8 {[%clk 0:00:03.6]} 53... g1=Q {[%clk 0:00:06.8]} 54. e7
{[%clk 0:00:04.5]} 54... Qg5 {[%clk 0:00:07]} 55. Kd7 {[%clk 0:00:04.7]} 55...
Qd5+ {[%clk 0:00:07.1]} 56. Kc7 {[%clk 0:00:04.9]} 56... Qc6+ {[%clk 0:00:07.4]}
57. Kd8 {[%clk 0:00:04.4]} 57... Qd6+ {[%clk 0:00:08]} 58. Ke8 {[%clk 0:00:05]}
58... Ke5 {[%clk 0:00:07.3]} 59. Kf7 {[%clk 0:00:05.6]} 59... Qf6+ {[%clk
0:00:07.1]} 60. Ke8 {[%clk 0:00:03.3]} 60... Kd6 {[%clk 0:00:06.7]} 61. Kd8
{[%clk 0:00:04]} 61... Qxe7+ {[%clk 0:00:07.3]} 62. Kc8 {[%clk 0:00:04.7]} 62...
Qc7# {[%clk 0:00:08]} 0-1